[Event "British Rapidplay Championship 2023"]
[Site "Mercure Bradford, Bankfield Hotel"]
[Date "2023.04.15"]
[Round "1.11"]
[White "Donahue, Randolph E"]
[Black "Walker, David J"]
[Result "0-1"]
[TimeControl "15 minutes plus 10 seconds per move"]
[WhiteElo "1780"]
[BlackElo "2250"]

1. e4 {[%clk 00:15:08]} e5 {[%clk 00:15:15]} {[%emt 00:00:09]} 2. Bc4 {[%clk
00:15:25]} {[%emt 00:00:02]} Nf6 {[%clk 00:15:23]} {[%emt 00:00:02]} 3. d4
{[%clk 00:15:33]} {[%emt 00:00:01]} exd4 {[%clk 00:15:21]} {[%emt 00:00:13]} 4.
Nf3 {[%clk 00:15:40]} {[%emt 00:00:01]} Nc6 {[%clk 00:15:30]} {[%emt 00:00:02]}
5. O-O {[%clk 00:15:45]} {[%emt 00:00:05]} Nxe4 {[%clk 00:15:35]} {[%emt
00:00:05]} 6. Re1 {[%clk 00:15:52]} {[%emt 00:00:03]} d5 {[%clk 00:15:44]}
{[%emt 00:00:01]} 7. Bxd5 {[%clk 00:15:59]} {[%emt 00:00:03]} Qxd5 {[%clk
00:15:53]} {[%emt 00:00:01]} 8. Nc3 {[%clk 00:16:05]} {[%emt 00:00:04]} Qh5
{[%clk 00:15:47]} {[%emt 00:00:16]} 9. Nxe4 {[%clk 00:16:10]} {[%emt 00:00:05]}
Be6 {[%clk 00:15:54]} {[%emt 00:00:04]} 10. Bg5 {[%clk 00:16:10]} {[%emt
00:00:10]} Bd6 {[%clk 00:15:49]} {[%emt 00:00:15]} 11. h4 {[%clk 00:14:24]}
{[%emt 00:01:55]} h6 {[%clk 00:14:17]} {[%emt 00:01:43]} 12. Bf6 {[%clk
00:13:25]} {[%emt 00:01:09]} O-O {[%clk 00:12:48]} {[%emt 00:01:38]} 13. Nxd6
{[%clk 00:12:46]} {[%emt 00:00:49]} cxd6 {[%clk 00:12:56]} {[%emt 00:00:03]} 14.
Bxd4 {[%clk 00:12:08]} {[%emt 00:00:47]} Bg4 {[%clk 00:12:56]} {[%emt
00:00:11]} 15. Bc3 {[%clk 00:11:46]} {[%emt 00:00:32]} Rfe8 {[%clk 00:12:29]}
{[%emt 00:00:37]} 16. Qd3 {[%clk 00:11:14]} {[%emt 00:00:41]} Bxf3 {[%clk
00:12:22]} {[%emt 00:00:17]} 17. Qxf3 {[%clk 00:10:56]} {[%emt 00:00:29]} Qxf3
{[%clk 00:10:42]} {[%emt 00:01:50]} 18. gxf3 {[%clk 00:11:04]} {[%emt
00:00:02]} d5 {[%clk 00:10:27]} {[%emt 00:00:24]} 19. Rad1 {[%clk 00:10:46]}
{[%emt 00:00:28]} Rxe1+ {[%clk 00:10:23]} {[%emt 00:00:15]} 20. Rxe1 {[%clk
00:10:55]} {[%emt 00:00:01]} d4 {[%clk 00:10:27]} {[%emt 00:00:06]} 21. Bd2
{[%clk 00:11:02]} {[%emt 00:00:02]} Rd8 {[%clk 00:10:17]} {[%emt 00:00:20]} 22.
Re4 {[%clk 00:10:19]} {[%emt 00:00:53]} f6 {[%clk 00:10:09]} {[%emt 00:00:18]}
23. a3 {[%clk 00:08:47]} {[%emt 00:01:43]} Kf7 {[%clk 00:10:13]} {[%emt
00:00:05]} 24. Kf1 {[%clk 00:08:10]} {[%emt 00:00:48]} Rd5 {[%clk 00:09:00]}
{[%emt 00:01:22]} 25. Ke2 {[%clk 00:06:14]} {[%emt 00:02:06]} f5 {[%clk
00:08:55]} {[%emt 00:00:15]} 26. Rf4 {[%clk 00:05:59]} {[%emt 00:00:26]} g5
{[%clk 00:09:01]} {[%emt 00:00:04]} 27. hxg5 {[%clk 00:06:07]} {[%emt
00:00:02]} hxg5 {[%clk 00:09:09]} {[%emt 00:00:02]} 28. Re4 {[%clk 00:06:00]}
{[%emt 00:00:16]} fxe4 {[%clk 00:09:17]} {[%emt 00:00:03]} 29. fxe4 {[%clk
00:06:09]} {[%emt 00:00:01]} Re5 {[%clk 00:08:58]} {[%emt 00:00:28]} 30. Kd3
{[%clk 00:06:16]} {[%emt 00:00:03]} Kg6 {[%clk 00:08:53]} {[%emt 00:00:15]} 31.
f4 {[%clk 00:06:12]} {[%emt 00:00:14]} gxf4 {[%clk 00:09:00]} {[%emt 00:00:04]}
32. Bxf4 {[%clk 00:06:21]} {[%emt 00:00:01]} Rh5 {[%clk 00:08:44]} {[%emt
00:00:26]} 33. b4 {[%clk 00:06:29]} {[%emt 00:00:02]} Rh3+ {[%clk 00:08:25]}
{[%emt 00:00:29]} 0-1

[Event "British Rapidplay Championship 2023"]
[Site "Mercure Bradford, Bankfield Hotel"]
[Date "2023.04.15"]
[Round "1.12"]
[White "Shaw, Peter"]
[Black "Rogers, Bernard A"]
[Result "1-0"]
[TimeControl "15 minutes plus 10 seconds per move"]
[WhiteElo "2231"]
[BlackElo "1772"]

1. d4 {[%clk 00:15:16]} {[%emt 00:00:03]} d5 {[%clk 00:15:18]} {[%emt
00:00:02]} 2. c4 {[%clk 00:15:24]} {[%emt 00:00:03]} e6 {[%clk 00:15:25]}
{[%emt 00:00:03]} 3. Nc3 {[%clk 00:15:32]} {[%emt 00:00:02]} Nf6 {[%clk
00:15:33]} {[%emt 00:00:02]} 4. Bg5 {[%clk 00:15:39]} {[%emt 00:00:02]} Be7
{[%clk 00:15:42]} {[%emt 00:00:02]} 5. e3 {[%clk 00:15:47]} {[%emt 00:00:02]}
O-O {[%clk 00:15:49]} {[%emt 00:00:03]} 6. Nf3 {[%clk 00:15:55]} {[%emt
00:00:02]} h6 {[%clk 00:15:56]} {[%emt 00:00:04]} 7. Bh4 {[%clk 00:16:02]}
{[%emt 00:00:02]} Nbd7 {[%clk 00:15:55]} {[%emt 00:00:11]} 8. Qc2 {[%clk
00:15:46]} {[%emt 00:00:26]} dxc4 {[%clk 00:15:08]} {[%emt 00:00:58]} 9. Bxc4
{[%clk 00:15:53]} {[%emt 00:00:03]} Nb6 {[%clk 00:15:16]} {[%emt 00:00:02]} 10.
Bd3 {[%clk 00:15:22]} {[%emt 00:00:41]} Nbd5 {[%clk 00:14:49]} {[%emt
00:00:37]} 11. a3 {[%clk 00:15:22]} {[%emt 00:00:11]} Nxc3 {[%clk 00:14:48]}
{[%emt 00:00:12]} 12. bxc3 {[%clk 00:15:14]} {[%emt 00:00:17]} b6 {[%clk
00:13:22]} {[%emt 00:01:37]} 13. O-O {[%clk 00:13:52]} {[%emt 00:01:32]} Bb7
{[%clk 00:13:24]} {[%emt 00:00:08]} 14. e4 {[%clk 00:13:41]} {[%emt 00:00:20]}
Nh7 {[%clk 00:11:57]} {[%emt 00:01:38]} 15. Bg3 {[%clk 00:13:24]} {[%emt
00:00:27]} Ng5 {[%clk 00:11:29]} {[%emt 00:00:37]} 16. Nd2 {[%clk 00:12:40]}
{[%emt 00:00:54]} c5 {[%clk 00:11:04]} {[%emt 00:00:36]} 17. h4 {[%clk
00:10:27]} {[%emt 00:02:23]} Nh7 {[%clk 00:08:35]} {[%emt 00:02:39]} 18. e5
{[%clk 00:10:35]} {[%emt 00:00:02]} f5 {[%clk 00:08:31]} {[%emt 00:00:14]} 19.
exf6 {[%clk 00:10:34]} {[%emt 00:00:12]} Nxf6 {[%clk 00:08:37]} {[%emt
00:00:03]} 20. Bc4 {[%clk 00:08:06]} {[%emt 00:02:38]} Bd5 {[%clk 00:08:19]}
{[%emt 00:00:28]} 21. Rfe1 {[%clk 00:07:43]} {[%emt 00:00:33]} cxd4 {[%clk
00:06:30]} {[%emt 00:01:58]} 22. cxd4 {[%clk 00:07:51]} {[%emt 00:00:03]} Qd7
{[%clk 00:04:37]} {[%emt 00:02:04]} 23. Qg6 {[%clk 00:06:13]} {[%emt 00:01:47]}
Rac8 {[%clk 00:04:05]} {[%emt 00:00:42]} 24. Bd3 {[%clk 00:05:31]} {[%emt
00:00:52]} Bd6 {[%clk 00:03:11]} {[%emt 00:01:03]} 25. Be5 {[%clk 00:05:24]}
{[%emt 00:00:18]} Qe8 {[%clk 00:02:00]} {[%emt 00:01:22]} 26. Bxd6 {[%clk
00:05:03]} {[%emt 00:00:30]} Qxg6 {[%clk 00:02:07]} {[%emt 00:00:03]} 27. Bxg6
{[%clk 00:05:11]} {[%emt 00:00:18]} 1-0

[Event "British Rapidplay Championship 2023"]
[Site "Mercure Bradford, Bankfield Hotel"]
[Date "2023.04.15"]
[Round "1.13"]
[White "Vijayakumar, Rishi"]
[Black "Mosnegutu, Klauss"]
[Result "1/2-1/2"]
[TimeControl "15 minutes plus 10 seconds per move"]
[WhiteElo "1770"]
[BlackElo "2229"]

1. d4 {[%clk 00:15:18]} {[%emt 00:00:02]} Nf6 {[%clk 00:15:16]} {[%emt
00:00:04]} 2. c4 {[%clk 00:15:27]} {[%emt 00:00:01]} e6 {[%clk 00:15:23]}
{[%emt 00:00:02]} 3. Nf3 {[%clk 00:15:35]} {[%emt 00:00:01]} Bb4+ {[%clk
00:15:31]} {[%emt 00:00:02]} 4. Bd2 {[%clk 00:15:44]} {[%emt 00:00:01]} c5
{[%clk 00:15:36]} {[%emt 00:00:05]} 5. a3 {[%clk 00:14:23]} {[%emt 00:01:32]}
Bxd2+ {[%clk 00:15:20]} {[%emt 00:00:26]} 6. Qxd2 {[%clk 00:14:31]} {[%emt
00:00:01]} cxd4 {[%clk 00:15:09]} {[%emt 00:00:21]} 7. Nxd4 {[%clk 00:14:39]}
{[%emt 00:00:01]} d5 {[%clk 00:15:15]} {[%emt 00:00:04]} 8. Nc3 {[%clk
00:14:29]} {[%emt 00:00:20]} Nc6 {[%clk 00:15:11]} {[%emt 00:00:14]} 9. cxd5
{[%clk 00:14:11]} {[%emt 00:00:28]} Nxd5 {[%clk 00:15:14]} {[%emt 00:00:07]} 10.
Nxc6 {[%clk 00:14:08]} {[%emt 00:00:13]} bxc6 {[%clk 00:15:22]} {[%emt
00:00:02]} 11. e4 {[%clk 00:14:06]} {[%emt 00:00:12]} Nxc3 {[%clk 00:15:24]}
{[%emt 00:00:09]} 12. Qxc3 {[%clk 00:14:06]} {[%emt 00:00:10]} O-O {[%clk
00:15:12]} {[%emt 00:00:22]} 13. Be2 {[%clk 00:13:46]} {[%emt 00:00:30]} Qb6
{[%clk 00:14:10]} {[%emt 00:01:12]} 14. O-O {[%clk 00:13:25]} {[%emt 00:00:30]}
a5 {[%clk 00:13:58]} {[%emt 00:00:22]} 15. b4 {[%clk 00:10:32]} {[%emt
00:03:03]} Bb7 {[%clk 00:11:42]} {[%emt 00:02:26]} 16. Qc5 {[%clk 00:09:17]}
{[%emt 00:01:25]} Qxc5 {[%clk 00:09:33]} {[%emt 00:02:19]} 17. bxc5 {[%clk
00:09:26]} {[%emt 00:00:02]} a4 {[%clk 00:09:42]} 18. Rfd1 {[%clk 00:06:32]}
{[%emt 00:03:04]} Ra5 {[%clk 00:08:42]} {[%emt 00:01:09]} 19. Rac1 {[%clk
00:06:31]} {[%emt 00:00:10]} g6 {[%clk 00:08:39]} {[%emt 00:00:14]} 20. Rd6
{[%clk 00:06:01]} {[%emt 00:00:39]} Rc8 {[%clk 00:08:34]} {[%emt 00:00:15]} 21.
f4 {[%clk 00:05:31]} {[%emt 00:00:40]} Ba6 {[%clk 00:08:16]} {[%emt 00:00:28]}
22. Bxa6 {[%clk 00:04:48]} {[%emt 00:00:53]} Rxa6 {[%clk 00:08:26]} {[%emt
00:00:01]} 23. Rc4 {[%clk 00:04:40]} {[%emt 00:00:17]} Rb8 {[%clk 00:08:31]}
{[%emt 00:00:05]} 24. Rdd4 {[%clk 00:04:36]} {[%emt 00:00:14]} Rb5 {[%clk
00:08:18]} {[%emt 00:00:23]} 25. Rxa4 {[%clk 00:03:27]} {[%emt 00:01:18]} Rxa4
{[%clk 00:08:25]} {[%emt 00:00:04]} 26. Rxa4 {[%clk 00:03:36]} {[%emt
00:00:01]} Rxc5 {[%clk 00:08:34]} {[%emt 00:00:01]} 27. Kf2 {[%clk 00:03:33]}
{[%emt 00:00:12]} Rc2+ {[%clk 00:08:39]} {[%emt 00:00:04]} 28. Kf3 {[%clk
00:03:40]} {[%emt 00:00:02]} c5 {[%clk 00:08:48]} {[%emt 00:00:03]} 29. Ra8+
{[%clk 00:03:49]} {[%emt 00:00:01]} Kg7 {[%clk 00:08:57]} 30. a4 {[%clk
00:03:46]} {[%emt 00:00:13]} Rc3+ {[%clk 00:08:35]} {[%emt 00:00:32]} 31. Kf2
{[%clk 00:03:50]} {[%emt 00:00:06]} Rc2+ {[%clk 00:07:35]} {[%emt 00:01:10]} 32.
Kf3 {[%clk 00:03:59]} {[%emt 00:00:02]} c4 {[%clk 00:07:06]} {[%emt 00:00:39]}
33. a5 {[%clk 00:04:08]} {[%emt 00:00:01]} c3 {[%clk 00:07:15]} 34. a6 {[%clk
00:04:14]} {[%emt 00:00:04]} Ra2 {[%clk 00:07:23]} {[%emt 00:00:01]} 35. a7
{[%clk 00:04:03]} {[%emt 00:00:22]} c2 {[%clk 00:07:30]} {[%emt 00:00:02]} 36.
Rc8 {[%clk 00:04:11]} {[%emt 00:00:01]} Rxa7 {[%clk 00:07:15]} {[%emt
00:00:26]} 37. Rxc2 {[%clk 00:04:19]} {[%emt 00:00:02]} Ra3+ {[%clk 00:07:24]}
{[%emt 00:00:01]} 38. Kf2 {[%clk 00:04:26]} {[%emt 00:00:04]} Kf6 {[%clk
00:07:27]} {[%emt 00:00:06]} 39. Rc5 {[%clk 00:04:11]} {[%emt 00:00:25]} h5
{[%clk 00:07:29]} {[%emt 00:00:07]} 40. h4 {[%emt 00:00:53]} Ra1 {[%clk
00:07:28]} 41. Rc7 {[%clk 00:03:40]} {[%emt 00:00:10]} Rh1 {[%clk 00:07:17]}
{[%emt 00:00:21]} 42. g3 {[%clk 00:03:28]} {[%emt 00:00:22]} Ra1 {[%clk
00:07:16]} {[%emt 00:00:11]} 43. Kf3 {[%clk 00:03:32]} {[%emt 00:00:07]} Ra3+
{[%clk 00:07:23]} {[%emt 00:00:02]} 44. Kg2 {[%clk 00:03:41]} {[%emt 00:00:02]}
Re3 {[%clk 00:07:19]} {[%emt 00:00:14]} 45. e5+ {[%clk 00:03:33]} {[%emt
00:00:18]} Kg7 {[%clk 00:07:08]} {[%emt 00:00:21]} 46. Kf2 {[%clk 00:03:36]}
{[%emt 00:00:06]} Rd3 {[%clk 00:07:16]} {[%emt 00:00:02]} 47. Kg2 {[%clk
00:03:44]} {[%emt 00:00:02]} Kf8 {[%clk 00:07:23]} {[%emt 00:00:03]} 48. Ra7
{[%clk 00:03:46]} {[%emt 00:00:08]} Ke8 {[%clk 00:07:29]} {[%emt 00:00:04]} 49.
Kf2 {[%clk 00:03:54]} {[%emt 00:00:02]} Rd7 {[%clk 00:06:55]} {[%emt 00:00:44]}
50. Ra6 {[%clk 00:03:57]} {[%emt 00:00:07]} Rb7 {[%clk 00:06:59]} {[%emt
00:00:06]} 51. Kf3 {[%clk 00:04:03]} {[%emt 00:00:04]} Kd7 {[%clk 00:07:05]}
{[%emt 00:00:03]} 52. Rd6+ {[%clk 00:04:11]} {[%emt 00:00:02]} Kc7 {[%clk
00:07:11]} {[%emt 00:00:04]} 53. Rd3 {[%clk 00:04:09]} {[%emt 00:00:12]} Kc6
{[%clk 00:07:18]} {[%emt 00:00:03]} 54. Rd8 {[%clk 00:03:03]} {[%emt 00:01:15]}
Rd7 {[%clk 00:07:18]} {[%emt 00:00:11]} 55. Rc8+ {[%clk 00:02:39]} {[%emt
00:00:33]} Kd5 {[%clk 00:07:26]} {[%emt 00:00:03]} 56. Rc1 {[%clk 00:02:41]}
{[%emt 00:00:07]} Rb7 {[%clk 00:07:33]} {[%emt 00:00:04]} 57. Rd1+ {[%clk
00:02:50]} {[%emt 00:00:01]} Kc5 {[%clk 00:07:41]} {[%emt 00:00:01]} 58. Rc1+
{[%clk 00:02:59]} {[%emt 00:00:02]} Kd4 {[%clk 00:07:44]} {[%emt 00:00:07]} 59.
Rd1+ {[%clk 00:03:08]} {[%emt 00:00:01]} Kc4 {[%clk 00:07:01]} {[%emt
00:00:54]} 60. Rd8 {[%clk 00:03:09]} {[%emt 00:00:08]} Kc5 {[%clk 00:06:49]}
{[%emt 00:00:21]} 61. Rc8+ {[%clk 00:03:15]} {[%emt 00:00:05]} Kd5 {[%clk
00:06:56]} {[%emt 00:00:03]} 62. Rd8+ {[%clk 00:03:22]} {[%emt 00:00:02]} Kc6
{[%clk 00:07:05]} {[%emt 00:00:01]} 63. Rd6+ {[%clk 00:03:25]} {[%emt
00:00:08]} Kc7 {[%clk 00:07:07]} {[%emt 00:00:08]} 64. Rd3 {[%clk 00:03:31]}
{[%emt 00:00:03]} Rb6 {[%clk 00:07:12]} {[%emt 00:00:05]} 65. Rd4 {[%clk
00:03:17]} {[%emt 00:00:24]} Rc6 {[%clk 00:07:15]} {[%emt 00:00:07]} 66. Ra4
{[%clk 00:03:17]} {[%emt 00:00:11]} Kd7 {[%clk 00:07:22]} {[%emt 00:00:02]} 67.
Ra7+ {[%clk 00:03:25]} {[%emt 00:00:02]} Rc7 {[%clk 00:07:31]} {[%emt
00:00:02]} 68. Ra6 {[%clk 00:03:32]} {[%emt 00:00:03]} Ke7 {[%clk 00:07:39]}
{[%emt 00:00:01]} 69. Rd6 {[%clk 00:03:39]} {[%emt 00:00:03]} f6 {[%clk
00:07:46]} {[%emt 00:00:04]} 70. Ra6 {[%clk 00:03:39]} {[%emt 00:00:08]} Rc3+
{[%clk 00:07:50]} {[%emt 00:00:07]} 71. Kf2 {[%clk 00:03:13]} {[%emt 00:00:35]}
fxe5 {[%clk 00:07:58]} {[%emt 00:00:02]} 72. fxe5 {[%clk 00:03:22]} {[%emt
00:00:01]} Rc5 {[%clk 00:08:08]} {[%emt 00:00:01]} 73. Ra7+ {[%clk 00:03:31]}
{[%emt 00:00:02]} Kf8 {[%clk 00:08:16]} {[%emt 00:00:01]} 74. Kf3 {[%clk
00:03:27]} {[%emt 00:00:14]} Rxe5 {[%clk 00:08:24]} {[%emt 00:00:02]} 75. Kf4
{[%clk 00:03:34]} {[%emt 00:00:03]} Rf5+ {[%clk 00:08:33]} {[%emt 00:00:01]} 76.
Ke4 {[%clk 00:03:43]} Rf7 {[%clk 00:08:36]} {[%emt 00:00:07]} 77. Ra6 {[%clk
00:03:43]} {[%emt 00:00:07]} Ke7 {[%emt 00:00:31]} 78. Ra8 {[%clk 00:03:27]}
Rf5 {[%clk 00:08:38]} {[%emt 00:00:15]} 79. Ra7+ {[%clk 00:03:28]} {[%emt
00:00:09]} Kf6 {[%clk 00:08:46]} {[%emt 00:00:02]} 80. Ra8 {[%clk 00:03:33]}
{[%emt 00:00:06]} Rb5 {[%clk 00:08:52]} {[%emt 00:00:04]} 81. Rf8+ {[%clk
00:03:41]} {[%emt 00:00:02]} Ke7 {[%clk 00:09:01]} {[%emt 00:00:02]} 82. Rg8
{[%clk 00:03:45]} {[%emt 00:00:06]} Kf7 {[%clk 00:09:10]} {[%emt 00:00:01]} 83.
Ra8 {[%clk 00:03:53]} {[%emt 00:00:02]} Rb1 {[%clk 00:09:07]} {[%emt 00:00:13]}
84. Kf4 {[%emt 00:00:47]} Rf1+ {[%clk 00:09:01]} 85. Ke4 {[%clk 00:03:34]}
{[%emt 00:00:08]} Rc1 {[%clk 00:08:57]} {[%emt 00:00:14]} 86. Ke5 {[%clk
00:03:26]} {[%emt 00:00:18]} Re1+ {[%clk 00:08:28]} {[%emt 00:00:39]} 87. Kf4
{[%clk 00:03:35]} {[%emt 00:00:02]} Rf1+ {[%clk 00:08:29]} {[%emt 00:00:08]} 88.
Ke5 {[%clk 00:03:04]} {[%emt 00:00:41]} Rf5+ {[%clk 00:07:50]} {[%emt
00:00:49]} 89. Ke4 {[%clk 00:03:10]} {[%emt 00:00:04]} g5 {[%clk 00:07:41]}
{[%emt 00:00:19]} 90. hxg5 {[%clk 00:02:19]} {[%emt 00:01:00]} Rxg5 {[%clk
00:07:50]} 91. Rh8 {[%clk 00:02:06]} {[%emt 00:00:24]} Kg7 {[%clk 00:07:23]}
{[%emt 00:00:37]} 92. Re8 {[%clk 00:02:15]} {[%emt 00:00:02]} Rxg3 {[%clk
00:07:31]} {[%emt 00:00:02]} 93. Rxe6 {[%clk 00:02:10]} {[%emt 00:00:14]} h4
{[%clk 00:07:37]} {[%emt 00:00:05]} 94. Kf4 {[%clk 00:02:15]} {[%emt 00:00:06]}
Rg1 {[%clk 00:07:34]} {[%emt 00:00:13]} 95. Re3 {[%clk 00:01:52]} {[%emt
00:00:33]} Kg6 {[%clk 00:07:34]} {[%emt 00:00:10]} 96. Re6+ {[%clk 00:02:00]}
{[%emt 00:00:02]} Kh5 {[%clk 00:07:33]} {[%emt 00:00:11]} 97. Re5+ {[%clk
00:02:09]} {[%emt 00:00:01]} Kh6 {[%clk 00:07:42]} {[%emt 00:00:01]} 98. Re6+
{[%clk 00:02:18]} {[%emt 00:00:01]} Kg7 {[%clk 00:07:48]} {[%emt 00:00:03]} 99.
Re3 {[%clk 00:02:26]} {[%emt 00:00:02]} Kg6 {[%clk 00:06:24]} {[%emt 00:01:35]}
100. Re6+ {[%clk 00:02:34]} {[%emt 00:00:02]} Kg7 {[%clk 00:06:29]} {[%emt
00:00:05]} 101. Re3 {[%clk 00:02:42]} {[%emt 00:00:02]} Kh6 {[%clk 00:06:07]}
{[%emt 00:00:33]} 102. Re6+ {[%clk 00:02:49]} {[%emt 00:00:02]} Rg6 {[%clk
00:06:06]} {[%emt 00:00:11]} 103. Rxg6+ {[%clk 00:02:55]} {[%emt 00:00:03]}
Kxg6 {[%clk 00:06:13]} {[%emt 00:00:02]} 1/2-1/2

[Event "British Rapidplay Championship 2023"]
[Site "Mercure Bradford, Bankfield Hotel"]
[Date "2023.04.15"]
[Round "1.14"]
[White "Ciuravin, Andrei"]
[Black "Graff, Ben"]
[Result "1-0"]
[TimeControl "15 minutes plus 10 seconds per move"]
[WhiteElo "2185"]
[BlackElo "1768"]

1. d4 {[%clk 00:15:18]} {[%emt 00:41:19]} f5 {[%clk 00:15:19]} {[%emt
00:00:01]} 2. g3 {[%clk 00:15:26]} {[%emt 00:00:03]} Nf6 {[%clk 00:15:27]}
{[%emt 00:00:02]} 3. Bg2 {[%clk 00:15:34]} {[%emt 00:00:02]} g6 {[%clk
00:15:30]} {[%emt 00:00:07]} 4. c4 {[%clk 00:15:42]} {[%emt 00:00:02]} Bg7
{[%clk 00:15:37]} {[%emt 00:00:02]} 5. Nc3 {[%clk 00:15:50]} {[%emt 00:00:02]}
O-O {[%clk 00:15:24]} {[%emt 00:00:23]} 6. Nf3 {[%clk 00:15:57]} {[%emt
00:00:03]} d6 {[%clk 00:15:21]} {[%emt 00:00:14]} 7. O-O {[%clk 00:16:04]}
{[%emt 00:00:03]} c6 {[%clk 00:15:23]} {[%emt 00:00:08]} 8. Qc2 {[%clk
00:16:10]} {[%emt 00:00:03]} Qe8 {[%clk 00:15:20]} {[%emt 00:00:14]} 9. b3
{[%clk 00:16:09]} {[%emt 00:00:12]} e5 {[%clk 00:15:11]} {[%emt 00:00:18]} 10.
Ba3 {[%clk 00:16:08]} {[%emt 00:00:11]} exd4 {[%clk 00:14:28]} {[%emt
00:00:52]} 11. Nxd4 {[%clk 00:16:13]} {[%emt 00:00:06]} Ne4 {[%clk 00:14:04]}
{[%emt 00:00:34]} 12. Nxe4 {[%clk 00:16:19]} {[%emt 00:00:03]} fxe4 {[%clk
00:14:01]} {[%emt 00:00:13]} 13. Rad1 {[%clk 00:16:27]} {[%emt 00:00:03]} e3
{[%clk 00:10:19]} {[%emt 00:03:52]} 14. f4 {[%clk 00:16:27]} {[%emt 00:00:09]}
c5 {[%clk 00:09:42]} {[%emt 00:00:47]} 15. Nb5 {[%clk 00:16:30]} {[%emt
00:00:08]} Bf5 {[%clk 00:09:22]} {[%emt 00:00:29]} 16. Qc1 {[%clk 00:16:38]}
{[%emt 00:00:02]} Nc6 {[%clk 00:08:26]} {[%emt 00:01:07]} 17. Nxd6 {[%clk
00:16:45]} {[%emt 00:00:03]} Qe7 {[%clk 00:07:29]} {[%emt 00:01:06]} 18. Bxc5
{[%clk 00:16:36]} {[%emt 00:00:19]} Qc7 {[%clk 00:07:27]} {[%emt 00:00:12]} 19.
Nb5 {[%clk 00:16:27]} {[%emt 00:00:20]} Qa5 {[%clk 00:06:50]} {[%emt 00:00:47]}
20. Bxf8 {[%clk 00:15:50]} {[%emt 00:00:47]} Rxf8 {[%clk 00:06:53]} {[%emt
00:00:07]} 21. a3 {[%clk 00:15:49]} {[%emt 00:00:11]} Qb6 {[%clk 00:05:29]}
{[%emt 00:01:33]} 22. b4 {[%clk 00:15:28]} {[%emt 00:00:32]} a6 {[%clk
00:04:59]} {[%emt 00:00:41]} 23. Nc3 {[%clk 00:15:32]} {[%emt 00:00:04]} Nd4
{[%clk 00:04:32]} {[%emt 00:00:38]} 24. c5 {[%clk 00:14:35]} {[%emt 00:01:07]}
Qc7 {[%clk 00:04:00]} {[%emt 00:00:42]} 25. Qxe3 {[%clk 00:13:53]} {[%emt
00:00:51]} Nc2 {[%clk 00:03:55]} {[%emt 00:00:16]} 26. Qf3 {[%clk 00:13:28]}
{[%emt 00:00:34]} Bd4+ {[%clk 00:02:59]} {[%emt 00:01:07]} 27. Rxd4 {[%clk
00:13:34]} {[%emt 00:00:05]} Nxd4 {[%clk 00:03:04]} {[%emt 00:00:03]} 28. Qd5+
{[%clk 00:13:42]} {[%emt 00:00:02]} Be6 {[%clk 00:02:59]} {[%emt 00:00:15]} 29.
Qxd4 {[%clk 00:13:50]} {[%emt 00:00:03]} Rd8 {[%clk 00:02:50]} {[%emt
00:00:19]} 30. Nd5 {[%clk 00:13:55]} {[%emt 00:00:04]} Bxd5 {[%clk 00:02:33]}
{[%emt 00:00:28]} 31. Bxd5+ {[%clk 00:14:02]} {[%emt 00:00:02]} Rxd5 {[%clk
00:01:47]} {[%emt 00:00:56]} 32. Qxd5+ {[%clk 00:14:11]} {[%emt 00:00:01]} Kg7
{[%clk 00:01:55]} {[%emt 00:00:03]} 33. Qe5+ {[%clk 00:14:19]} {[%emt
00:00:01]} 1-0